[Event "German Masters 2022"]
[Site "Magdeburg"]
[Date "2022.08.17"]
[Round "2.5"]
[White "Koelle, Tobias"]
[Black "Engel, Luis"]
[Result "1-0"]
[ECO "D30"]
[WhiteElo "2436"]
[BlackElo "2558"]
[Annotator "TA"]
[PlyCount "85"]
[EventDate "2022.08.16"]
[EventType "tourn"]
[EventCountry "GER"]
[SourceTitle "playchess.com"]
[Source "ChessBase"]
[SourceQuality "1"]
[TimeControl "40/5400+30:1800+30"]

{[%evp 9,85,31,22,19,25,12,29,25,45,-10,-12,-6,27,14,36,30,19,24,19,24,0,1,7,19,25,0,37,15,41,39,33,47,104,103,110,99,297,76,81,80,81,87,116,121,149,90,79,75,76,85,76,78,192,202,216,137,125,137,129,94,113,130,117,0,0,-26,-22,-31,578,582,688,643,732,722,29976,29973,29980,29979]} 1. d4 {[%emt 0:00:03]} d5 {[%emt 0:00:04]} 2. c4 {[%emt 0:00:08]} e6 {[%emt 0:00:04]} 3. Nf3 {[%emt 0:00:06]} c6 {[%emt 0:00:03]} 4. Bg5 {[%emt 0:03:21]} Qa5+ {[%emt 0:08:22]} 5. Bd2 {[%emt 0:06:14]} Qc7 {[%emt 0:00:50]} 6. e3 {[%emt 0:07:50] D30: Queen's Gambit Declined: Systems without Nc3.} Nf6 {[%emt 0:00:05]} 7. Nc3 {[%emt 0:03:17]} Nbd7 {[%emt 0:00:46]} 8. Bd3 {[%emt 0:03:44] White has an edge.} Bd6 {[%emt 0:00:41]} 9. c5 {[%emt 0:11:26]} ({White should try} 9. O-O $14) 9... Be7 $11 {[%emt 0:00:05]} 10. b4 {[%emt 0:07:46]} b6 {[%emt 0:07:08] [#]} 11. O-O $146 {[%emt 0:05:52]} ({Predecessor:} 11. Qc2 h6 12. O-O O-O 13. Rac1 e5 14. dxe5 Nxe5 15. Nxe5 Qxe5 16. Na4 b5 17. Bc3 Qc7 18. Nb2 {1-0 (27) Breiter,J (1365)-Krannig,S (1070) Bad Zwesten 2003}) 11... O-O {[%emt 0:01:59]} 12. Qc2 {[%emt 0:03:24]} bxc5 {[%emt 0:08:19]} 13. bxc5 {[%emt 0:03:56]} e5 {[%emt 0:00:07]} 14. dxe5 {[%emt 0:08:09]} Nxe5 {[%emt 0:00:06]} 15. Nxe5 {[%emt 0:00:06]} Qxe5 {[%emt 0:00:05]} 16. Ne2 {[%emt 0:01:31]} Ne4 {[%emt 0:06:35]} 17. Bb4 {[%emt 0:02:24]} a5 {[%emt 0:07:50]} 18. Ba3 {[%emt 0:01:08]} Ba6 {[%emt 0:00:56]} 19. Bxa6 {[%emt 0:02:09]} Rxa6 {[%emt 0:00:04]} 20. Rab1 {[%emt 0:01:03]} h5 {[%emt 0:11:22]} (20... Qc7 $14) 21. Rb7 $16 {[%emt 0:01:29] Black must now prevent f3.} Bd8 {[%emt 0:04:59]} 22. Nd4 {[%emt 0:06:29] aiming for Qd3.} Bc7 $2 {[%emt 0:11:25]} (22... Qe8 $16) 23. Nf3 $2 {[%emt 0:04:44]} (23. f4 $18 Qe7 24. Qe2) 23... Qe7 {[%emt 0:00:18][%cal Oc7h2]} 24. Rfb1 {[%emt 0:00:12]} Rc8 {[%emt 0:02:56] [#]} 25. Nd4 $1 {[%emt 0:07:00]} Qe5 {[%emt 0:03:18]} 26. g3 $36 {[%emt 0:01:39][%mdl 2048] White is in control.} h4 {[%emt 0:10:40][%cal Rh4g3] [#]} 27. Nf3 {[%emt 0:02:15]} (27. f3 $142 $1 {[%cal Rf3e4]} Nf6 28. Qd3) 27... Qc3 {[%emt 0:03:02]} 28. Qxc3 {[%emt 0:01:14]} Nxc3 {[%emt 0:00:04]} 29. R1b3 {[%emt 0:00:28]} Nxa2 {[%emt 0:01:05]} 30. Nxh4 {[%emt 0:00:29][%cal Bf3h4,Bh4f5,Bf5d6][%mdl 32]} Raa8 {[%emt 0:05:08]} (30... g6 $16) 31. Nf5 $18 {[%emt 0:00:37] Ne7+ is the strong threat.} Kf8 {[%emt 0:00:41] Inhibits Ne7.} 32. Nd6 {[%emt 0:01:52]} Rcb8 {[%emt 0:00:05] [#]} 33. Nxf7 $1 {[%emt 0:00:46][%mdl 512] White is more active.} Nc3 {[%emt 0:02:48]} 34. Ng5 {[%emt 0:01:09] Strongly threatening Ne6+.} Rxb7 {[%emt 0:01:46]} 35. Rxb7 {[%emt 0:00:08]} Be5 {[%emt 0:00:05]} 36. Bb2 {[%emt 0:01:52]} ({White should play} 36. f4 $16 Bf6 37. Nh7+ Kg8 38. Nxf6+ gxf6 39. Rb6) 36... a4 $11 {[%emt 0:01:01][%cal Ba5a4,Ba4a3][%mdl 32]} 37. Kf1 {[%emt 0:02:10]} a3 {[%emt 0:00:56]} 38. Ba1 {[%emt 0:00:09] And now f4 would win.} Ra5 $2 {[%emt 0:01:51][%mdl 8192]} (38... Kg8 $1 $15) 39. f4 $18 {[%emt 0:00:30][%cal Bf2f4,Bf4e5][%mdl 32]} Rb5 {[%emt 0:01:44]} 40. Rxb5 {[%emt 0:00:12]} ({Weaker is} 40. fxe5 Rxb7 41. Bxc3 Rb3 $17) 40... cxb5 {[%emt 0:00:08]} 41. fxe5 {[%emt 0:30:21]} b4 {[%emt 0:30:14]} 42. Bxc3 {[%emt 0:00:58]} d4 {[%emt 0:00:00]} 43. Ne6+ {[%emt 0:00:00] Weighted Error Value: White=0.24 (precise) /Black=0.65} 1-0

[Event "German Masters 2022"]
[Site "Magdeburg"]
[Date "2022.08.18"]
[Round "3.1"]
[White "Engel, Luis"]
[Black "Keymer, Vincent"]
[Result "0-1"]
[ECO "B90"]
[WhiteElo "2558"]
[BlackElo "2686"]
[Annotator "TA"]
[PlyCount "108"]
[EventDate "2022.08.16"]
[EventType "tourn"]
[EventCountry "GER"]
[SourceTitle "playchess.com"]
[Source "ChessBase"]
[SourceQuality "1"]
[TimeControl "40/5400+30:1800+30"]

{[%evp 12,108,14,3,35,29,26,27,37,15,50,33,42,19,14,15,19,12,10,0,0,0,0,-18,-2,-13,0,0,0,0,0,0,0,0,0,0,8,0,0,0,0,-10,-8,-8,0,-33,-31,-37,-30,-95,-90,-75,-15,-20,-8,-192,-191,-188,-187,-224,-206,-566,-560,-600,-600,-592,-592,-743,-706,-607,-562,-885,-934,-1294,-1220,-637,-277,-5401,-4909,-5326,-5155,-5919,-5911,-29975,-29976,-29974,-29971,-29982,-29981,-29981,-29982,-29982,-29983,-29983,-29984,-29985,-29985,-29986,-29987]} 1. e4 {[%emt 0:00:02]} c5 {[%emt 0:00:05]} 2. Nf3 {[%emt 0:00:05]} d6 {[%emt 0:00:03]} 3. d4 {[%emt 0:00:05]} cxd4 {[%emt 0:00:04]} 4. Nxd4 {[%emt 0:00:04]} Nf6 {[%emt 0:00:05]} 5. Nc3 {[%emt 0:00:06]} a6 {[%emt 0:00:02]} 6. h3 {[%emt 0:00:06]} e5 {[%emt 0:00:05]} 7. Nde2 {[%emt 0:00:05]} h5 {[%emt 0:01:19] B90: Sicilian Najdorf: Unusual White 6th moves, 6 Be3 Ng4 and 6 Be3 e5.} 8. g3 {[%emt 0:00:14]} Be7 {[%emt 0:00:55]} 9. Bg2 {[%emt 0:00:26]} b5 {[%emt 0:01:59] White has an edge.} 10. Nd5 {[%emt 0:10:40]} Nxd5 {[%emt 0:03:13]} 11. Qxd5 {[%emt 0:00:06]} Ra7 {[%emt 0:00:04]} 12. Qd3 {[%emt 0:08:18] [#]} (12. Be3 $5 {[%cal Re3a7]} Rb7 13. O-O-O $14) 12... Nd7 $146 {[%emt 0:06:33]} ({Predecessor:} 12... Rc7 13. Bd2 Nc6 14. a4 Be6 15. b3 O-O 16. axb5 axb5 17. Qxb5 Qb8 18. Qxb8 Rxb8 19. Ra2 h4 20. O-O hxg3 21. fxg3 Rbc8 22. Rc1 Nd4 23. Nxd4 exd4 24. Kf2 {½-½ (24) Koch,C (2344)-Sorcinelli,A (2294) LSS email 2020}) 13. Nc3 {[%emt 0:01:19]} Nf6 {[%emt 0:04:15]} 14. Be3 {[%emt 0:06:56]} Rb7 {[%emt 0:07:01]} 15. O-O {[%emt 0:00:08]} O-O {[%emt 0:09:19]} 16. Rfd1 {[%emt 0:09:00]} b4 {[%emt 0:11:32]} 17. Ne2 {[%emt 0:15:35]} Be6 {[%emt 0:06:18]} 18. Qxa6 {[%emt 0:07:40]} Qc8 {[%emt 0:03:31] ...Bc4 is the strong threat.} 19. b3 {[%emt 0:04:27] Against Bc4} Bd7 {[%emt 0:01:59] And now ...Bb5 would win.} 20. c4 {[%emt 0:04:44] Prevents Bb5.} Bc6 {[%emt 0:03:05]} ({Much less strong is} 20... bxc3 21. Nxc3 $1 Qb8 22. Rac1 $16) 21. a3 {[%emt 0:07:39]} bxa3 {[%emt 0:01:03]} 22. Rxa3 {[%emt 0:03:29]} ({Much worse is} 22. Qxa3 Bxe4 23. Qa2 Bxg2 24. Kxg2 Qc6+ 25. Kh2 Rfb8 $15) 22... Nxe4 {[%emt 0:04:15]} 23. Rd3 {[%emt 0:04:42]} Rc7 {[%emt 0:19:34]} 24. Qxc8 {[%emt 0:01:57]} Rfxc8 {[%emt 0:00:05]} 25. Ra6 {[%emt 0:03:28][%cal Oa6c6] Black must now prevent Rxc6!} f5 {[%emt 0:00:35]} 26. g4 {[%emt 0:02:05]} g6 {[%emt 0:01:00]} 27. f4 {[%emt 0:00:59]} Kf7 {[%emt 0:02:40]} 28. Rb6 {[%emt 0:03:12]} hxg4 {[%emt 0:03:20]} 29. hxg4 {[%emt 0:00:04]} Ra7 {[%emt 0:01:09] Strongly threatening ...Ra1+.} 30. Nc3 {[%emt 0:01:28] [#]} (30. Rd1 $1 $11 {keeps the balance.} Ra2 31. Nc1) 30... exf4 $1 $17 {[%emt 0:01:54]} 31. Bxf4 {[%emt 0:00:21]} Ra1+ {[%emt 0:02:21]} (31... Nxc3 $17 32. Rxc3 Bf6 33. Rxc6 Rxc6 34. Bd5+ Kg7) 32. Rd1 $11 {[%emt 0:00:33]} Bd8 $36 {[%emt 0:01:03][%mdl 2048] Black has the initiative.} (32... Rxd1+ {keeps more tension.} 33. Nxd1 d5 34. b4 dxc4 35. Ne3 Bh4) 33. Rxc6 {[%emt 0:01:56] White does not recover from this.} (33. Rb7+ $1 $11 Bxb7 34. Rxa1) 33... Rxd1+ $19 {[%emt 0:00:05]} 34. Nxd1 {[%emt 0:00:03]} Rxc6 {[%emt 0:00:06]} 35. gxf5 {[%emt 0:00:06]} gxf5 {[%emt 0:00:03] aiming for ...Ra6.} 36. Ne3 $2 {[%emt 0:02:47]} (36. Kh2) 36... Bb6 {[%emt 0:00:27]} 37. Kf1 {[%emt 0:00:42]} Bxe3 {[%emt 0:01:20]} 38. Bxe3 {[%emt 0:00:04][%mdl 4096] Endgame KRN-KB} Ra6 {[%emt 0:01:16]} 39. Ke2 {[%emt 0:00:25]} Ra2+ {[%emt 0:01:15]} 40. Kf3 {[%emt 0:00:05]} Kf6 {[%emt 0:02:15]} 41. b4 {[%emt 0:32:36]} Nd2+ {[%emt 0:32:55]} 42. Kf4 {[%emt 0:00:38]} Nxc4 {[%emt 0:00:36]} 43. Bd5 {[%emt 0:00:33]} Ra4 {[%emt 0:00:00]} 44. Bf2 {[%emt 0:00:00]} (44. Bd4+ Ne5 45. Ke3 Rxb4 46. Bc3 f4+ 47. Ke2) 44... Ne5 {[%emt 0:00:00] Threatens to win with ...Nd3+.} 45. Bh4+ {[%emt 0:00:00]} Kg6 {[%emt 0:00:00]} 46. Be7 {[%emt 0:00:00]} Rxb4+ {[%emt 0:00:00]} 47. Ke3 {[%emt 0:00:00]} f4+ {[%emt 0:00:00] Black mates.} 48. Kf2 {[%emt 0:00:00]} Kf5 {[%emt 0:00:00]} 49. Bxd6 {[%emt 0:00:00]} Rd4 {[%emt 0:00:00]} 50. Bxe5 {[%emt 0:00:00]} Rxd5 {[%emt 0:00:00]} 51. Bc7 {[%emt 0:00:00]} Ke4 {[%emt 0:00:00]} 52. Ke2 {[%emt 0:00:00]} Rc5 {[%emt 0:00:00]} 53. Bb6 {[%emt 0:00:00]} Rc2+ {[%emt 0:00:00]} 54. Ke1 {[%emt 0:00:00]} Kf3 {[%emt 0:00:00] Weighted Error Value: White=0.95/Black=0.14 (very precise)} 0-1

[Event "German Masters 2022"]
[Site "Magdeburg"]
[Date "2022.08.18"]
[Round "3.2"]
[White "Fridman, Daniel"]
[Black "Koelle, Tobias"]
[Result "1-0"]
[ECO "A06"]
[WhiteElo "2599"]
[BlackElo "2436"]
[Annotator "TA"]
[PlyCount "101"]
[EventDate "2022.08.16"]
[EventType "tourn"]
[EventCountry "GER"]
[SourceTitle "playchess.com"]
[Source "ChessBase"]
[SourceQuality "1"]
[TimeControl "40/5400+30:1800+30"]

{[%evp 9,101,18,21,16,10,8,4,-10,13,13,13,10,20,18,22,10,0,0,10,15,29,-2,33,27,52,49,89,85,106,80,165,159,189,191,205,165,187,154,217,147,145,157,154,146,146,147,201,181,182,182,177,177,183,193,191,173,185,180,181,132,136,131,134,134,168,168,168,168,240,163,186,186,163,145,159,159,156,138,143,95,417,417,417,417,6078,5493,29972,29970,29975,29976,29975,29976,29970,29969]} 1. Nf3 {[%emt 0:00:06]} d5 {[%emt 0:00:04]} 2. g3 {[%emt 0:00:06]} Bg4 {[%emt 0:00:04]} 3. Bg2 {[%emt 0:00:06]} e6 {[%emt 0:00:05]} 4. h3 {[%emt 0:01:09]} Bh5 {[%emt 0:00:20]} 5. O-O {[%emt 0:00:07]} Nf6 {[%emt 0:00:30]} 6. c4 {[%emt 0:00:08] A07: Réti Opening: New York and Capablanca Systems.} c6 {[%emt 0:00:13]} 7. Qb3 Qb6 {[%emt 0:01:09]} 8. d3 {[%emt 0:00:51] The position is equal.} Be7 {[%emt 0:01:15]} 9. Be3 {[%emt 0:00:21]} Qxb3 {[%emt 0:00:17]} 10. axb3 {[%emt 0:00:08]} Bxf3 {[%emt 0:03:31]} 11. Bxf3 {[%emt 0:00:27]} Na6 {[%emt 0:00:24]} 12. Nc3 {[%emt 0:05:30]} O-O {[%emt 0:00:55] [#]} 13. d4 $146 {[%emt 0:14:00]} ({Predecessor:} 13. cxd5 exd5 14. d4 Nc7 15. Bd2 Ne6 16. e3 Ng5 17. Bg2 h5 18. f3 Ne6 19. Ne2 {1-0 (60) Bacrot,E (2647)-Bosiocic,M (2545) Terme Catez 2021}) 13... Rfd8 {[%emt 0:22:53]} 14. Rfd1 {[%emt 0:00:38]} Ne8 {[%emt 0:02:21]} 15. g4 {[%emt 0:07:06]} g6 {[%emt 0:05:52]} 16. Bf4 {[%emt 0:06:19]} Bf6 {[%emt 0:07:12]} 17. e3 {[%emt 0:02:02]} Rd7 {[%emt 0:06:38]} 18. Be2 {[%emt 0:18:01]} Nac7 {[%emt 0:17:31]} 19. Na4 {[%emt 0:00:42] Threatens to win with Nc5.} Re7 {[%emt 0:00:40]} (19... Be7 $16) 20. Nc5 $36 {[%emt 0:01:16][%mdl 2048] Black is under strong pressure.} b6 {[%emt 0:02:19]} 21. Nd3 {[%emt 0:00:23]} a5 {[%emt 0:00:49]} 22. Ra2 {[%emt 0:14:06]} Na6 {[%emt 0:04:31]} 23. cxd5 {[%emt 0:08:05]} cxd5 {[%emt 0:00:55]} (23... exd5 $16 24. b4 Nac7) 24. b4 {[%emt 0:00:51]} Rea7 {[%emt 0:02:52]} 25. bxa5 {[%emt 0:02:50]} Nac7 {[%emt 0:00:35]} 26. b4 {[%emt 0:02:07]} bxa5 {[%emt 0:02:01]} 27. Rda1 {[%emt 0:00:15] Strongly threatening Nc5.} g5 {[%emt 0:04:09]} (27... Nb5 $16) 28. Bh2 {[%emt 0:01:02] Nc5 is the strong threat.} Nb5 {[%emt 0:06:48]} 29. Rxa5 {[%emt 0:00:25]} Bd8 {[%emt 0:00:16]} 30. Rxa7 {[%emt 0:02:10]} Rxa7 {[%emt 0:00:02]} 31. Rxa7 {[%emt 0:02:37]} Nxa7 {[%emt 0:00:04]} 32. Nc5 {[%emt 0:01:00]} Kf8 {[%emt 0:02:25]} 33. f4 {[%emt 0:07:08]} h6 {[%emt 0:01:12]} 34. fxg5 {[%emt 0:02:13]} ({White should try} 34. Bg3 $18) 34... hxg5 $16 {[%emt 0:00:36]} 35. Bg3 {[%emt 0:00:06] 0x0.0019ee73f008dp-1022s more active pieces. The black rooks are badly placed.} Bc7 {[%emt 0:01:53]} 36. Be1 {[%emt 0:00:39]} Ke7 {[%emt 0:01:33]} 37. h4 {[%emt 0:01:02]} gxh4 {[%emt 0:00:12]} 38. Bxh4+ {[%emt 0:00:06]} Kd6 {[%emt 0:02:43]} (38... Kf8 {is a better defense.} 39. Nd7+ Kg7) 39. Bd1 {[%emt 0:01:34] [#] And now Ba4 would win.} Nb5 {[%emt 0:01:35]} 40. Ba4 {[%emt 0:01:45]} Kc6 {[%emt 0:00:08]} 41. Nd3 {[%emt 0:09:52]} Kb6 {[%emt 0:05:26]} 42. Ne5 {[%emt 0:01:46]} Ned6 {[%emt 0:06:10]} 43. Be7 {[%emt 0:02:29]} Nc3 {[%emt 0:05:35]} 44. Bc2 {[%emt 0:03:24] A strong pair of Bishops.} (44. Bb3 $142) 44... Na2 $2 {[%emt 0:02:02][%mdl 8192] Loses the game.} (44... Nc4 $16 {is a better chance.}) 45. g5 $18 {[%emt 0:09:32][%cal Oe5f7,Bg4g5,Bg5g6][%mdl 32] aiming for Nxf7!} Nxb4 {[%emt 0:00:23]} 46. Nxf7 {[%emt 0:00:25]} Nxc2 {[%emt 0:06:00]} (46... Nxf7 $142 47. g6 (47. Bxb4 Nxg5 48. Kf2 e5 $11) 47... Nh6 48. Bxb4 Bd8) 47. Bxd6 {[%emt 0:00:07] White wants to mate with g6.} Nxe3 {[%emt 0:00:12]} 48. Bxc7+ {[%emt 0:00:09] White mates.} Kxc7 {[%emt 0:00:09] [#] KN-KN} 49. Nh6 $1 {[%emt 0:00:04]} e5 {[%emt 0:02:13]} 50. g6 {[%emt 0:00:08]} exd4 {[%emt 0:00:07]} 51. Kf2 {[%emt 0:00:12] Weighted Error Value: White=0.10 (very precise) /Black=0.38} 1-0

[Event "German Masters 2022"]
[Site "Magdeburg"]
[Date "2022.08.18"]
[Round "3.3"]
[White "Kollars, Dmitrij"]
[Black "Rosner, Jonas"]
[Result "1-0"]
[ECO "D17"]
[WhiteElo "2648"]
[BlackElo "2478"]
[Annotator "TA"]
[PlyCount "85"]
[EventDate "2022.08.16"]
[EventType "tourn"]
[EventCountry "GER"]
[SourceTitle "playchess.com"]
[Source "ChessBase"]
[SourceQuality "1"]
[TimeControl "40/5400+30:1800+30"]

{[%evp 13,85,-6,36,4,5,8,8,0,0,0,0,0,0,0,0,0,0,0,0,0,16,14,17,12,28,19,33,33,41,35,39,38,43,33,65,51,60,27,34,27,77,71,81,69,69,80,98,104,94,103,95,67,174,165,177,184,159,163,225,235,227,191,293,288,678,655,729,714,710,689,803,797,962,895]} 1. d4 {[%emt 0:03:46]} d5 {[%emt 0:00:09]} 2. c4 {[%emt 0:00:08]} c6 {[%emt 0:00:31]} 3. Nf3 {[%emt 0:00:37]} Nf6 {[%emt 0:00:12]} 4. Nc3 {[%emt 0:00:27]} dxc4 {[%emt 0:00:25]} 5. a4 {[%emt 0:00:35]} Bf5 {[%emt 0:00:53]} 6. Ne5 {[%emt 0:00:28]} Nbd7 {[%emt 0:01:27]} 7. Nxc4 {[%emt 0:00:12]} Nb6 {[%emt 0:05:14]} 8. Ne3 {[%emt 0:00:05] D17: Slav Defence: 5 a4 Bf5: Lines with 6 Nh4 and 6 Ne5.} e6 {[%emt 0:06:19] now supersedes 8...Bg6.} 9. Nxf5 {[%emt 0:00:38]} exf5 {[%emt 0:00:03]} 10. g3 {[%emt 0:01:06] The position is equal.} a5 {[%emt 0:03:46]} 11. Bh3 {[%emt 0:00:58]} g6 {[%emt 0:03:35]} 12. O-O {[%emt 0:00:22]} Bg7 {[%emt 0:02:39] [#]} 13. Bg2 $146 {[%emt 0:00:56]} ({Predecessor:} 13. Bg5 h6 14. Bxf6 Qxf6 15. e3 Qe7 16. Qb3 Qb4 17. Qc2 O-O 18. Bg2 Rfd8 19. Rfd1 {½-½ (46) Fridman,D (2633)-Bluebaum,M (2521) Baden-Baden 2014}) 13... O-O {[%emt 0:05:46]} 14. Bg5 {[%emt 0:00:29]} Qd6 {[%emt 0:06:22]} 15. Bxf6 {[%emt 0:05:52]} Bxf6 {[%emt 0:00:33]} 16. e3 {[%emt 0:00:05]} Rfe8 {[%emt 0:04:06]} 17. Qb3 {[%emt 0:05:04]} Qb4 {[%emt 0:01:33]} 18. Qc2 {[%emt 0:00:40]} Rad8 {[%emt 0:04:58]} 19. Ra3 {[%emt 0:05:50] [#] Rb3 is the strong threat.} Nc4 {[%emt 0:04:08]} 20. Rb3 {[%emt 0:01:34]} Qe7 {[%emt 0:00:25]} 21. Ne2 {[%emt 0:07:43]} Nd6 {[%emt 0:02:07]} 22. Nf4 {[%emt 0:09:30]} Rd7 {[%emt 0:04:44]} 23. Nd3 {[%emt 0:06:06]} Qd8 {[%emt 0:02:51]} 24. Rc1 {[%emt 0:06:12]} h5 {[%emt 0:04:09]} 25. Rd1 {[%emt 0:09:14]} (25. Nc5 $5 {[%cal Rc5d7]} Rde7 26. Rd3 $11) 25... Kg7 {[%emt 0:05:43]} 26. Nc5 {[%emt 0:03:49]} Rc7 {[%emt 0:05:17]} (26... Rde7 $11) 27. Rb6 $16 {[%emt 0:04:54] White is more active.} Qa8 {[%emt 0:05:36]} 28. d5 {[%emt 0:04:18]} Qa7 {[%emt 0:00:59]} 29. Rb3 {[%emt 0:02:45] aiming for dxc6.} ({But not} 29. Qb3 Nc4 30. d6 (30. Rxb7 Rxb7 31. Nxb7 Nxe3 $17) 30... Qxb6 $11) 29... Rd8 {[%emt 0:04:14]} 30. Rbd3 {[%emt 0:01:20]} Be7 {[%emt 0:03:38]} 31. dxc6 {[%emt 0:02:18]} bxc6 {[%emt 0:00:16]} 32. Nb3 {[%emt 0:00:44][%cal Bc5b3,Bb3a5,Ba5c4,Bc4d6,Bd6b5][%mdl 32]} Qb6 {[%emt 0:02:19]} (32... Nb7 $14) 33. Qc3+ $18 {[%emt 0:01:17]} Bf6 {[%emt 0:02:47]} 34. Qxa5 {[%emt 0:00:36]} Qxa5 {[%emt 0:00:11]} 35. Nxa5 {[%emt 0:00:04]} Nb7 {[%emt 0:00:12]} (35... Ra8 $142) 36. Rxd8 {[%emt 0:04:14]} ({Resist} 36. Nxc6 $6 Rxd3 37. Rxd3 Nc5 $16) 36... Nxd8 {[%emt 0:00:17]} 37. b3 {[%emt 0:02:30]} c5 {[%emt 0:01:21]} (37... h4 $142 38. Kf1 hxg3) 38. Nc4 {[%emt 0:01:19]} Nc6 $2 {[%emt 0:00:43]} (38... Be7 39. a5 Ra7) 39. Nd6 {[%emt 0:01:22] White is clearly winning.} Kf8 {[%emt 0:03:28]} 40. Nb5 {[%emt 0:00:09]} Rc8 {[%emt 0:00:09]} 41. Rd6 $1 {[%emt 0:30:31][%csl LRc6,LRf6]} Nd8 {[%emt 0:30:13]} 42. Rxf6 {[%emt 0:00:13]} Ne6 {[%emt 0:00:02] [#]} 43. Rxf7+ $3 {[%emt 0:00:06] Weighted Error Value: White=0.05 (flawless) /Black=0.33} 1-0